[Event "SixDays One Year IM-B 2023"]
[Site "Budapest"]
[Date "2023.09.18"]
[Round "1.1"]
[White "Szabo, Abel"]
[Black "Meessen, Rudolf"]
[Result "1-0"]
[ECO "B75"]
[WhiteElo "2234"]
[BlackElo "2109"]
[Annotator "ChessBase"]
[PlyCount "79"]
[EventDate "2023.09.18"]
[EventType "tourn"]
[EventCountry "HUN"]
[SourceTitle "playchess.com"]
[Source "ChessBase"]
[SourceQuality "1"]
[TimeControl "5400+30"]

1. e4 {[%emt 0:00:03]} c5 {[%emt 0:00:26]} 2. Nf3 {[%emt 0:00:10]} d6 {[%emt 0:00:32]} 3. d4 {[%emt 0:00:09]} cxd4 {[%emt 0:00:05]} 4. Nxd4 {[%emt 0:00:09]} Nf6 {[%emt 0:00:04]} 5. Nc3 {[%emt 0:00:12]} g6 {[%emt 0:00:18]} 6. Be3 {[%emt 0:00:09]} Bg7 {[%emt 0:00:06]} 7. f3 {[%emt 0:00:11]} h5 {[%emt 0:00:51]} 8. Qd2 {[%emt 0:00:20]} a6 {[%emt 0:00:07]} 9. Bc4 {[%emt 0:01:16]} b5 {[%emt 0:00:16]} 10. Bb3 {[%emt 0:00:14]} Nbd7 {[%emt 0:00:55]} 11. a4 {[%emt 0:06:27]} b4 {[%emt 0:24:11]} 12. Nd5 {[%emt 0:02:30]} Bb7 {[%emt 0:00:31]} 13. Nxb4 {[%emt 0:01:52]} Nc5 {[%emt 0:04:03]} 14. Nd3 {[%emt 0:08:14]} e5 {[%emt 0:06:59]} 15. Nxc5 {[%emt 0:08:27]} dxc5 {[%emt 0:09:05]} 16. Ne2 {[%emt 0:00:28]} Qc7 {[%emt 0:01:03]} 17. Qc3 {[%emt 0:07:23]} Rc8 {[%emt 0:02:15]} 18. Bc4 {[%emt 0:01:47]} O-O {[%emt 0:00:11]} 19. O-O Rfd8 {[%emt 0:02:56]} 20. Rfd1 {[%emt 0:03:41]} Rd4 {[%emt 0:00:22]} 21. Qb3 {[%emt 0:03:43]} Rb8 {[%emt 0:03:41]} 22. Bxd4 {[%emt 0:07:16]} exd4 {[%emt 0:02:58]} 23. Qa2 {[%emt 0:09:33]} h4 {[%emt 0:01:16]} 24. c3 {[%emt 0:01:37]} Bh6 {[%emt 0:02:59]} 25. cxd4 {[%emt 0:05:08]} Be3+ {[%emt 0:00:14]} 26. Kh1 {[%emt 0:00:19]} cxd4 {[%emt 0:00:25]} 27. Rd3 {[%emt 0:08:00]} h3 {[%emt 0:08:29]} 28. Nxd4 {[%emt 0:05:37]} Qf4 {[%emt 0:02:02]} 29. Bxf7+ {[%emt 0:02:58]} Kh8 {[%emt 0:01:43]} 30. Ne6 Qh6 {[%emt 0:00:55]} 31. Qa3 {[%emt 0:04:26]} Ng4 32. fxg4 {[%emt 0:06:49]} hxg2+ {[%emt 0:02:33]} 33. Kxg2 {[%emt 0:00:09]} Bxe4+ {[%emt 0:00:07]} 34. Kg3 {[%emt 0:00:08]} g5 {[%emt 0:02:10]} 35. Qc3+ {[%emt 0:02:08]} Kh7 {[%emt 0:00:02]} 36. Bh5 {[%emt 0:00:37]} Bf2+ {[%emt 0:10:37]} 37. Kxf2 {[%emt 0:04:23]} Rb7 {[%emt 0:05:37]} 38. Rd8 {[%emt 0:00:46]} Rf7+ {[%emt 0:00:45]} 39. Kg1 {[%emt 0:00:12]} Rg7 {[%emt 0:00:58]} 40. Qxg7+ {[%emt 0:00:13]} 1-0

[Event "SixDays One Year IM-B 2023"]
[Site "Budapest"]
[Date "2023.09.18"]
[Round "1.2"]
[White "Balint, Vilmos"]
[Black "Kozusek, Daniel"]
[Result "0-1"]
[ECO "A00"]
[WhiteElo "2217"]
[BlackElo "2365"]
[Annotator "ChessBase"]
[PlyCount "60"]
[EventDate "2023.09.18"]
[EventType "tourn"]
[EventCountry "HUN"]
[SourceTitle "playchess.com"]
[Source "ChessBase"]
[SourceQuality "1"]
[TimeControl "5400+30"]

1. g3 {[%emt 0:00:16]} d5 {[%emt 0:00:58]} 2. Bg2 {[%emt 0:00:07]} e5 {[%emt 0:01:00]} 3. c4 {[%emt 0:00:34]} d4 {[%emt 0:00:06]} 4. b4 {[%emt 0:01:08]} Nf6 {[%emt 0:02:50]} 5. Nf3 {[%emt 0:03:33]} Nbd7 {[%emt 0:05:47]} 6. Qa4 {[%emt 0:01:55]} c6 {[%emt 0:00:53]} 7. O-O {[%emt 0:01:06]} a5 {[%emt 0:03:55]} 8. Ba3 {[%emt 0:03:28]} b5 {[%emt 0:11:07]} 9. cxb5 {[%emt 0:09:14]} cxb5 {[%emt 0:00:12]} 10. Qxb5 {[%emt 0:07:22]} axb4 {[%emt 0:03:28]} 11. Ng5 {[%emt 0:04:54]} e4 {[%emt 0:26:16]} 12. Bb2 {[%emt 0:11:20]} Ra5 {[%emt 0:01:05]} 13. Nxf7 {[%emt 0:03:39]} Rxb5 {[%emt 0:01:29]} 14. Nxd8 {[%emt 0:00:07]} Kxd8 {[%emt 0:00:15]} 15. Bxd4 {[%emt 0:00:04]} Bc5 {[%emt 0:00:51]} 16. Bb2 {[%emt 0:00:17]} Ba6 {[%emt 0:02:19]} 17. a3 {[%emt 0:01:46]} Ra5 {[%emt 0:03:33]} 18. d3 {[%emt 0:07:56]} exd3 {[%emt 0:00:44]} 19. exd3 {[%emt 0:00:03]} Re8 {[%emt 0:08:46]} 20. Nd2 {[%emt 0:09:56]} Bxd3 {[%emt 0:02:31]} 21. Rfd1 {[%emt 0:04:12]} Bc2 {[%emt 0:03:49]} 22. Nc4 {[%emt 0:05:14]} Bxd1 {[%emt 0:10:04]} 23. Nxa5 {[%emt 0:02:21]} Bh5 {[%emt 0:00:52]} 24. axb4 {[%emt 0:03:11]} Bxf2+ {[%emt 0:00:19]} 25. Kf1 {[%emt 0:00:09]} Bb6 {[%emt 0:01:13]} 26. Nc6+ {[%emt 0:00:13]} Kc7 {[%emt 0:00:14]} 27. Rc1 {[%emt 0:00:12]} Be2+ {[%emt 0:00:11]} 28. Ke1 {[%emt 0:00:03]} Bc4+ {[%emt 0:02:39]} 29. Kd1 {[%emt 0:00:27]} Bb3+ {[%emt 0:00:07]} 30. Kd2 {[%emt 0:00:24]} Be3+ {[%emt 0:00:06]} 0-1

[Event "SixDays One Year IM-B 2023"]
[Site "Budapest"]
[Date "2023.09.18"]
[Round "1.3"]
[White "Pap, Gyula"]
[Black "Besou, Hussain"]
[Result "1-0"]
[ECO "B13"]
[WhiteElo "2429"]
[BlackElo "2364"]
[Annotator "ChessBase"]
[PlyCount "123"]
[EventDate "2023.09.18"]
[EventType "tourn"]
[EventCountry "HUN"]
[SourceTitle "playchess.com"]
[Source "ChessBase"]
[SourceQuality "1"]
[TimeControl "5400+30"]

1. e4 {[%emt 0:00:04]} c6 {[%emt 0:00:12]} 2. d4 {[%emt 0:00:46]} d5 {[%emt 0:00:08]} 3. exd5 {[%emt 0:00:20]} cxd5 {[%emt 0:00:11]} 4. Bd3 {[%emt 0:00:15]} Nc6 {[%emt 0:02:03]} 5. c3 {[%emt 0:00:11]} Nf6 {[%emt 0:00:39]} 6. h3 {[%emt 0:00:42]} g6 {[%emt 0:01:35]} 7. Nf3 {[%emt 0:00:29]} Bg7 {[%emt 0:00:13]} 8. O-O {[%emt 0:00:14]} O-O {[%emt 0:00:13]} 9. Bf4 {[%emt 0:06:38]} Ne4 {[%emt 0:14:48]} 10. Nbd2 {[%emt 0:05:28]} Bf5 {[%emt 0:11:07]} 11. Be2 {[%emt 0:05:52]} Rc8 {[%emt 0:04:14]} 12. Re1 {[%emt 0:02:36]} Na5 {[%emt 0:13:10]} 13. Nxe4 {[%emt 0:13:35]} Bxe4 {[%emt 0:02:19]} 14. Nd2 {[%emt 0:00:26]} Bf5 {[%emt 0:00:55]} 15. Qa4 {[%emt 0:07:34]} Bd7 {[%emt 0:10:51]} 16. Qb4 {[%emt 0:05:25]} e6 {[%emt 0:10:19]} 17. Nb3 {[%emt 0:04:35]} Nc4 {[%emt 0:03:39]} 18. Qxb7 {[%emt 0:02:46]} Bc6 {[%emt 0:00:26]} 19. Qxa7 {[%emt 0:01:11]} Nxb2 {[%emt 0:03:01]} 20. Qa6 {[%emt 0:17:50]} Nc4 {[%emt 0:11:16]} 21. Nc5 {[%emt 0:11:44]} e5 {[%emt 0:04:04]} 22. Bxc4 {[%emt 0:03:02]} exf4 {[%emt 0:00:18]} 23. Be2 {[%emt 0:01:14]} Qf6 {[%emt 0:01:17]} 24. a4 {[%emt 0:02:02]} Ra8 {[%emt 0:01:35]} 25. Qd3 {[%emt 0:00:06]} Ra5 {[%emt 0:00:07]} 26. Reb1 {[%emt 0:02:28]} Qe7 {[%emt 0:01:30]} 27. Bf3 {[%emt 0:00:51]} Rfa8 {[%emt 0:00:16]} 28. Qc2 {[%emt 0:02:29]} Qc7 {[%emt 0:01:39]} 29. Qb3 {[%emt 0:00:34]} Bf8 {[%emt 0:01:17]} 30. Qb6 {[%emt 0:00:14]} Qxb6 {[%emt 0:01:07]} 31. Rxb6 {[%emt 0:00:02]} Rc8 {[%emt 0:00:08]} 32. Ra6 {[%emt 0:03:14]} Rxa6 {[%emt 0:00:31]} 33. Nxa6 {[%emt 0:00:01]} Bb7 {[%emt 0:00:40]} 34. Nc5 {[%emt 0:01:28]} Bxc5 {[%emt 0:00:06]} 35. dxc5 {[%emt 0:00:03]} Rxc5 {[%emt 0:00:08]} 36. Be2 {[%emt 0:01:15]} Rxc3 {[%emt 0:01:31]} 37. a5 {[%emt 0:00:01]} Rc7 {[%emt 0:00:19]} 38. Rb1 {[%emt 0:00:35]} Kg7 {[%emt 0:00:21]} 39. Rb6 {[%emt 0:00:47]} Ba8 {[%emt 0:01:00]} 40. Bf3 {[%emt 0:00:27]} Rc6 {[%emt 0:00:36]} 41. Rb5 {[%emt 0:00:45]} Ra6 {[%emt 0:00:35]} 42. Bxd5 {[%emt 0:00:25]} Bxd5 {[%emt 0:00:06]} 43. Rxd5 {[%emt 0:00:03]} Kf6 {[%emt 0:00:06]} 44. Rb5 {[%emt 0:00:14]} Ke6 {[%emt 0:00:31]} 45. Kf1 {[%emt 0:00:16]} Kd6 {[%emt 0:00:22]} 46. Rb7 {[%emt 0:01:30]} Ke6 {[%emt 0:01:26]} 47. Rb6+ {[%emt 0:00:19]} Rxb6 {[%emt 0:00:05]} 48. axb6 {[%emt 0:00:04]} Kd6 {[%emt 0:00:05]} 49. Ke2 {[%emt 0:00:10]} Kc6 {[%emt 0:00:08]} 50. Kf3 {[%emt 0:00:40]} Kxb6 {[%emt 0:00:55]} 51. Kxf4 {[%emt 0:00:20]} f6 {[%emt 0:00:09]} 52. g4 {[%emt 0:00:09]} Kc5 {[%emt 0:00:44]} 53. g5 {[%emt 0:00:21]} Kd6 {[%emt 0:00:15]} 54. gxf6 {[%emt 0:00:24]} Ke6 {[%emt 0:00:06]} 55. Kg5 {[%emt 0:00:13]} Kf7 {[%emt 0:00:05]} 56. h4 {[%emt 0:01:23]} Ke6 {[%emt 0:01:45]} 57. f3 {[%emt 0:01:07]} Kf7 {[%emt 0:00:08]} 58. Kh6 {[%emt 0:00:15]} Kg8 {[%emt 0:01:01]} 59. f7+ {[%emt 0:00:41]} Kf8 {[%emt 0:00:28]} 60. Kxh7 {[%emt 0:00:16]} Kxf7 {[%emt 0:00:08]} 61. f4 {[%emt 0:00:11]} Kf6 {[%emt 0:00:16]} 62. Kg8 {[%emt 0:00:13]} 1-0

[Event "SixDays One Year IM-B 2023"]
[Site "Budapest"]
[Date "2023.09.18"]
[Round "1.4"]
[White "To, Nhat Minh"]
[Black "Szeberenyi, Adam"]
[Result "1/2-1/2"]
[ECO "A05"]
[WhiteElo "2342"]
[BlackElo "2305"]
[Annotator "ChessBase"]
[PlyCount "23"]
[EventDate "2023.09.18"]
[EventType "tourn"]
[EventCountry "HUN"]
[SourceTitle "playchess.com"]
[Source "ChessBase"]
[SourceQuality "1"]
[TimeControl "5400+30"]

1. Nf3 {[%emt 0:00:03]} Nf6 {[%emt 0:00:05]} 2. b3 {[%emt 0:00:04]} g6 {[%emt 0:00:13]} 3. Bb2 {[%emt 0:00:04]} Bg7 {[%emt 0:00:02]} 4. e3 {[%emt 0:00:09]} d6 {[%emt 0:00:13]} 5. d4 {[%emt 0:00:05]} O-O {[%emt 0:00:08]} 6. Be2 {[%emt 0:00:04]} a5 {[%emt 0:00:06]} 7. a3 {[%emt 0:00:05]} Bf5 {[%emt 0:00:45]} 8. O-O {[%emt 0:00:09]} Ne4 {[%emt 0:00:33]} 9. Nbd2 {[%emt 0:00:07]} Nxd2 {[%emt 0:00:21]} 10. Qxd2 {[%emt 0:00:07]} Nc6 {[%emt 0:00:14]} 11. Bd3 {[%emt 0:00:10]} Bxd3 {[%emt 0:00:22]} 12. Qxd3 {[%emt 0:00:05]} 1/2-1/2

[Event "SixDays One Year IM-B 2023"]
[Site "Budapest"]
[Date "2023.09.18"]
[Round "1.5"]
[White "Pagan, Jonathan"]
[Black "Valkova, Angelika"]
[Result "1-0"]
[ECO "E04"]
[WhiteElo "2021"]
[BlackElo "2057"]
[Annotator "NA"]
[PlyCount "71"]
[EventDate "2023.09.18"]
[EventType "tourn"]
[EventCountry "HUN"]
[SourceTitle "playchess.com"]
[Source "ChessBase"]
[SourceQuality "1"]
[TimeControl "5400+30"]

1. d4 {[%emt 0:00:05]} Nf6 {[%emt 0:00:07]} 2. c4 {[%emt 0:00:06]} e6 {[%emt 0:00:06]} 3. Nf3 {[%emt 0:00:12]} d5 {[%emt 0:00:07]} 4. g3 {[%emt 0:00:07]} dxc4 {[%emt 0:00:05]} 5. Bg2 {[%emt 0:00:11]} Nbd7 {[%emt 0:00:07]} 6. O-O {[%emt 0:00:14]} Rb8 {[%emt 0:01:01]} 7. Qc2 {[%emt 0:03:30]} b5 {[%emt 0:03:15]} 8. b3 {[%emt 0:00:21]} cxb3 {[%emt 0:01:42]} 9. axb3 {[%emt 0:00:05]} a6 {[%emt 0:01:44]} 10. Rd1 {[%emt 0:03:20]} Bb7 {[%emt 0:05:17]} 11. Ne5 {[%emt 0:29:45]} Bxg2 {[%emt 0:02:15]} 12. Kxg2 {[%emt 0:01:40]} Rb6 {[%emt 0:00:43]} 13. Kg1 {[%emt 0:00:24]} Nxe5 {[%emt 0:13:20]} 14. dxe5 {[%emt 0:00:05]} Nd7 {[%emt 0:00:07]} 15. Be3 {[%emt 0:17:54]} c5 {[%emt 0:00:17]} 16. Nc3 {[%emt 0:02:14]} Qc7 {[%emt 0:05:33]} 17. f4 {[%emt 0:00:09]} Be7 {[%emt 0:02:54]} 18. Qd2 {[%emt 0:00:34]} Nb8 {[%emt 0:03:29]} 19. Ne4 {[%emt 0:02:47]} Rc6 {[%emt 0:03:58]} 20. Nd6+ {[%emt 0:08:50]} Bxd6 {[%emt 0:01:27]} 21. exd6 {[%emt 0:00:05]} Qc8 {[%emt 0:01:09]} 22. b4 {[%emt 0:02:05]} c4 {[%emt 0:04:05]} 23. Qd4 {[%emt 0:07:09]} f6 {[%emt 0:03:04]} 24. f5 {[%emt 0:01:51]} exf5 {[%emt 0:07:43]} 25. Qd5 {[%emt 0:00:55]} Qd7 {[%emt 0:00:18]} 26. Bf4 {[%emt 0:02:50]} g5 {[%emt 0:04:48]} 27. Be5 {[%emt 0:03:27]} Rf8 {[%emt 0:01:01]} 28. Bc3 {[%emt 0:00:58]} Rf7 {[%emt 0:06:43]} 29. Rd4 {[%emt 0:02:54]} f4 {[%emt 0:01:18]} 30. Re4+ {[%emt 0:03:20]} Kf8 {[%emt 0:04:30]} 31. Rd1 {[%emt 0:01:21]} fxg3 {[%emt 0:00:42]} 32. hxg3 {[%emt 0:00:25]} Qh3 {[%emt 0:05:56]} 33. Re3 {[%emt 0:00:05]} f5 {[%emt 0:03:15]} 34. Qe5 {[%emt 0:00:19]} Rd7 {[%emt 0:01:57]} 35. Qh8+ {[%emt 0:00:05]} Kf7 {[%emt 0:00:06]} 36. Qg7# 1-0

[Event "SixDays One Year IM-B 2023"]
[Site "Budapest"]
[Date "2023.09.19"]
[Round "2.1"]
[White "Meessen, Rudolf"]
[Black "Valkova, Angelika"]
[Result "0-1"]
[ECO "D00"]
[WhiteElo "2109"]
[BlackElo "2057"]
[Annotator "ChessBase"]
[PlyCount "88"]
[EventDate "2023.09.18"]
[EventType "tourn"]
[EventCountry "HUN"]
[SourceTitle "playchess.com"]
[Source "ChessBase"]
[SourceQuality "1"]
[TimeControl "5400+30"]

1. d4 {[%emt 0:10:19]} d5 {[%emt 0:00:09]} 2. Nc3 {[%emt 0:00:07]} Nf6 {[%emt 0:00:06]} 3. Bf4 {[%emt 0:00:04]} a6 {[%emt 0:00:14]} 4. e3 {[%emt 0:00:13]} c5 {[%emt 0:00:26]} 5. dxc5 {[%emt 0:00:39]} Qa5 {[%emt 0:03:05]} 6. Nf3 {[%emt 0:01:32]} e6 {[%emt 0:12:39]} 7. a3 {[%emt 0:03:22]} Qxc5 {[%emt 0:00:09]} 8. Be2 {[%emt 0:02:26]} Be7 {[%emt 0:02:39]} 9. O-O {[%emt 0:00:58]} O-O {[%emt 0:00:24]} 10. Qd3 {[%emt 0:37:34]} b5 {[%emt 0:14:38]} 11. e4 {[%emt 0:03:51]} Bb7 {[%emt 0:02:39]} 12. e5 {[%emt 0:03:59]} Ne4 {[%emt 0:00:34]} 13. Nd1 {[%emt 0:01:22]} Nd7 {[%emt 0:09:27]} 14. h4 {[%emt 0:04:44]} f6 {[%emt 0:07:33]} 15. g3 {[%emt 0:00:05]} fxe5 {[%emt 0:03:36]} 16. Nxe5 {[%emt 0:00:10]} Nxe5 {[%emt 0:00:24]} 17. Bxe5 {[%emt 0:00:02]} Bf6 {[%emt 0:01:35]} 18. Bxf6 {[%emt 0:00:17]} Rxf6 {[%emt 0:00:29]} 19. Ne3 {[%emt 0:04:42]} Raf8 {[%emt 0:04:05]} 20. Ng4 {[%emt 0:10:52]} Rxf2 {[%emt 0:03:10]} 21. Rxf2 {[%emt 0:09:33]} Rxf2 {[%emt 0:02:16]} 22. b4 {[%emt 0:00:10]} Qb6 {[%emt 0:00:31]} 23. Ne3 {[%emt 0:02:59]} d4 {[%emt 0:07:00]} 24. Ng4 {[%emt 0:00:29]} Rg2+ {[%emt 0:01:55]} 25. Kxg2 {[%emt 0:00:59]} Nc5+ {[%emt 0:00:05]} 26. Qf3 {[%emt 0:00:19]} Nd7 {[%emt 0:01:18]} 27. Kh3 {[%emt 0:01:36]} Bxf3 {[%emt 0:00:09]} 28. Bxf3 {[%emt 0:00:01]} Qc7 {[%emt 0:14:28]} 29. Rd1 {[%emt 0:00:01]} h5 {[%emt 0:01:06]} 30. Nf2 {[%emt 0:00:03]} Qxc2 {[%emt 0:00:39]} 31. Kg2 {[%emt 0:01:06]} e5 {[%emt 0:01:36]} 32. Be4 {[%emt 0:00:28]} Qb2 {[%emt 0:00:46]} 33. Rd3 {[%emt 0:01:02]} Nf6 {[%emt 0:00:17]} 34. Kf3 {[%emt 0:00:37]} Nxe4 {[%emt 0:02:01]} 35. Nxe4 {[%emt 0:00:03]} Qc2 {[%emt 0:00:14]} 36. Nc5 {[%emt 0:00:06]} Kf7 {[%emt 0:01:22]} 37. Ke4 {[%emt 0:00:08]} Qe2+ {[%emt 0:00:42]} 38. Kd5 {[%emt 0:00:02]} Ke7 {[%emt 0:00:44]} 39. Kc6 {[%emt 0:00:03]} Qg2+ {[%emt 0:01:34]} 40. Kc7 {[%emt 0:00:54]} Qd5 {[%emt 0:00:19]} 41. Nb3 {[%emt 0:01:15]} Qc4+ {[%emt 0:00:30]} 42. Nc5 {[%emt 0:00:02]} e4 {[%emt 0:00:16]} 43. Rd1 {[%emt 0:00:23]} e3 {[%emt 0:00:23]} 44. Kb6 {[%emt 0:02:01]} e2 {[%emt 0:00:31]} 0-1

[Event "SixDays One Year IM-B 2023"]
[Site "Budapest"]
[Date "2023.09.19"]
[Round "2.2"]
[White "Szeberenyi, Adam"]
[Black "Pagan, Jonathan"]
[Result "1/2-1/2"]
[ECO "A06"]
[WhiteElo "2305"]
[BlackElo "2021"]
[Annotator "ChessBase"]
[PlyCount "71"]
[EventDate "2023.09.18"]
[EventType "tourn"]
[EventCountry "HUN"]
[SourceTitle "playchess.com"]
[Source "ChessBase"]
[SourceQuality "1"]
[TimeControl "5400+30"]

1. Nf3 {[%emt 0:00:04]} d5 {[%emt 0:03:07]} 2. g3 {[%emt 0:00:03]} c6 {[%emt 0:00:06]} 3. Bg2 {[%emt 0:00:03]} Bg4 {[%emt 0:00:06]} 4. O-O {[%emt 0:00:11]} e6 {[%emt 0:00:18]} 5. c4 {[%emt 0:02:32]} Bxf3 {[%emt 0:04:22]} 6. Bxf3 {[%emt 0:00:49]} Nf6 {[%emt 0:00:06]} 7. cxd5 {[%emt 0:04:58]} cxd5 {[%emt 0:00:20]} 8. d4 {[%emt 0:02:39]} Be7 {[%emt 0:01:40]} 9. Nc3 {[%emt 0:00:51]} O-O {[%emt 0:00:12]} 10. e4 {[%emt 0:01:20]} dxe4 {[%emt 0:04:36]} 11. Nxe4 {[%emt 0:00:05]} Nc6 {[%emt 0:00:49]} 12. Nxf6+ {[%emt 0:02:22]} Bxf6 {[%emt 0:00:09]} 13. d5 {[%emt 0:00:13]} exd5 {[%emt 0:00:25]} 14. Bxd5 {[%emt 0:00:38]} Qd7 {[%emt 0:08:05]} 15. Be4 {[%emt 0:07:19]} Rad8 {[%emt 0:02:06]} 16. Qh5 {[%emt 0:00:33]} g6 {[%emt 0:00:55]} 17. Qf3 {[%emt 0:00:04]} Bg7 {[%emt 0:04:02]} 18. Bg5 {[%emt 0:00:40]} Rc8 {[%emt 0:01:20]} 19. Rad1 {[%emt 0:06:42]} Qh3 {[%emt 0:09:37]} 20. Rd2 {[%emt 0:16:11]} Ne5 {[%emt 0:17:46]} 21. Qg2 {[%emt 0:08:09]} Qxg2+ {[%emt 0:00:15]} 22. Kxg2 {[%emt 0:00:16]} h6 {[%emt 0:04:16]} 23. Bf4 {[%emt 0:00:54]} b6 {[%emt 0:02:28]} 24. Re2 {[%emt 0:06:06]} Nc6 {[%emt 0:01:50]} 25. Rc1 {[%emt 0:05:09]} Nd4 {[%emt 0:00:22]} 26. Rxc8 {[%emt 0:00:11]} Nxe2 {[%emt 0:01:25]} 27. Rxf8+ {[%emt 0:00:19]} Kxf8 {[%emt 0:00:22]} 28. Bd6+ {[%emt 0:03:12]} Kg8 {[%emt 0:02:24]} 29. Kf1 {[%emt 0:04:59]} Nd4 {[%emt 0:07:44]} 30. Bb8 {[%emt 0:04:09]} a6 {[%emt 0:00:05]} 31. Bc7 {[%emt 0:02:38]} b5 {[%emt 0:03:03]} 32. b4 {[%emt 0:02:46]} f5 {[%emt 0:03:40]} 33. Bb7 {[%emt 0:00:54]} Bf8 {[%emt 0:07:41]} 34. Bb6 {[%emt 0:05:30]} Nc2 {[%emt 0:03:14]} 35. Bxa6 {[%emt 0:00:08]} Na3 {[%emt 0:00:10]} 36. Bc5 {[%emt 0:00:27]} 1/2-1/2

[Event "SixDays One Year IM-B 2023"]
[Site "Budapest"]
[Date "2023.09.19"]
[Round "2.3"]
[White "Besou, Hussain"]
[Black "To, Nhat Minh"]
[Result "0-1"]
[ECO "E49"]
[WhiteElo "2364"]
[BlackElo "2342"]
[Annotator "ChessBase"]
[PlyCount "96"]
[EventDate "2023.09.18"]
[EventType "tourn"]
[EventCountry "HUN"]
[SourceTitle "playchess.com"]
[Source "ChessBase"]
[SourceQuality "1"]
[TimeControl "5400+30"]

1. d4 {[%emt 0:00:06]} Nf6 {[%emt 0:08:56]} 2. c4 {[%emt 0:00:05]} e6 {[%emt 0:00:02]} 3. Nc3 {[%emt 0:00:11]} Bb4 {[%emt 0:00:07]} 4. e3 {[%emt 0:00:08]} O-O {[%emt 0:00:04]} 5. Bd3 {[%emt 0:01:23]} d5 {[%emt 0:00:19]} 6. a3 {[%emt 0:00:08]} Bxc3+ {[%emt 0:00:09]} 7. bxc3 {[%emt 0:00:07]} dxc4 {[%emt 0:00:02]} 8. Bxc4 {[%emt 0:00:09]} c5 {[%emt 0:00:01]} 9. Ne2 {[%emt 0:00:13]} Qc7 {[%emt 0:00:31]} 10. Bd3 {[%emt 0:01:27]} Nc6 {[%emt 0:01:05]} 11. f4 {[%emt 0:02:27]} b6 {[%emt 0:02:18]} 12. O-O {[%emt 0:00:35]} Rd8 {[%emt 0:00:22]} 13. Bb2 {[%emt 0:17:42]} Bb7 {[%emt 0:03:03]} 14. e4 {[%emt 0:06:00]} Na5 {[%emt 0:00:55]} 15. Ng3 {[%emt 0:14:25]} Qc6 {[%emt 0:08:15]} 16. Qe2 {[%emt 0:08:49]} cxd4 {[%emt 0:02:48]} 17. cxd4 {[%emt 0:00:23]} Nb3 {[%emt 0:00:28]} 18. Bb5 {[%emt 0:00:30]} Qc7 {[%emt 0:01:39]} 19. Rad1 {[%emt 0:00:23]} Rac8 {[%emt 0:01:33]} 20. Rf3 {[%emt 0:17:39]} a6 {[%emt 0:05:14]} 21. Ba4 {[%emt 0:03:33]} Na5 {[%emt 0:02:19]} 22. Bc3 {[%emt 0:06:10]} Qc4 {[%emt 0:03:58]} 23. Qxc4 {[%emt 0:08:32]} Rxc4 {[%emt 0:04:51]} 24. Bc2 {[%emt 0:02:58]} Rdc8 {[%emt 0:00:28]} 25. Bxa5 {[%emt 0:00:06]} Rxc2 {[%emt 0:02:34]} 26. Bxb6 {[%emt 0:00:08]} Nxe4 {[%emt 0:00:24]} 27. Nxe4 {[%emt 0:00:13]} Bxe4 {[%emt 0:00:04]} 28. Rg3 {[%emt 0:00:43]} Rb8 {[%emt 0:03:55]} 29. Rb1 {[%emt 0:02:44]} Rc6 {[%emt 0:21:48]} 30. Re1 {[%emt 0:00:11]} Rbxb6 {[%emt 0:00:15]} 31. Rxe4 {[%emt 0:00:08]} Rc2 {[%emt 0:01:58]} 32. h3 {[%emt 0:01:15]} g6 {[%emt 0:02:07]} 33. Kh2 {[%emt 0:00:52]} Rd2 {[%emt 0:02:23]} 34. h4 {[%emt 0:01:39]} h5 {[%emt 0:02:03]} 35. Rc3 {[%emt 0:03:18]} Rbb2 {[%emt 0:00:27]} 36. Rg3 {[%emt 0:00:06]} Kg7 {[%emt 0:01:12]} 37. Rg5 {[%emt 0:00:26]} Kf6 {[%emt 0:00:48]} 38. Rg3 {[%emt 0:00:50]} Ra2 {[%emt 0:00:39]} 39. Kh3 {[%emt 0:00:22]} Ra1 {[%emt 0:02:59]} 40. Rge3 {[%emt 0:00:57]} Rf1 {[%emt 0:01:51]} 41. Rf3 {[%emt 0:01:23]} Rg1 {[%emt 0:05:08]} 42. Rc3 {[%emt 0:01:23]} Rgxg2 {[%emt 0:00:26]} 43. Rc7 {[%emt 0:00:28]} Rh2+ {[%emt 0:00:30]} 44. Kg3 {[%emt 0:00:06]} Rdg2+ {[%emt 0:00:09]} 45. Kf3 {[%emt 0:00:06]} Ra2 {[%emt 0:01:13]} 46. Kg3 {[%emt 0:00:32]} Rhc2 {[%emt 0:00:54]} 47. Rxc2 {[%emt 0:00:19]} Rxc2 {[%emt 0:00:05]} 48. Re3 {[%emt 0:00:32]} Rd2 {[%emt 0:00:12]} 0-1

[Event "SixDays One Year IM-B 2023"]
[Site "Budapest"]
[Date "2023.09.19"]
[Round "2.4"]
[White "Kozusek, Daniel"]
[Black "Pap, Gyula"]
[Result "0-1"]
[ECO "D37"]
[WhiteElo "2365"]
[BlackElo "2429"]
[Annotator "ChessBase"]
[PlyCount "64"]
[EventDate "2023.09.18"]
[EventType "tourn"]
[EventCountry "HUN"]
[SourceTitle "playchess.com"]
[Source "ChessBase"]
[SourceQuality "1"]
[TimeControl "5400+30"]

1. d4 {[%emt 0:00:07]} d5 {[%emt 0:01:54]} 2. c4 {[%emt 0:00:36]} e6 {[%emt 0:00:08]} 3. Nf3 {[%emt 0:00:05]} Nf6 {[%emt 0:00:15]} 4. Nc3 {[%emt 0:00:08]} a6 {[%emt 0:02:13]} 5. c5 {[%emt 0:00:16]} Nc6 {[%emt 0:01:29]} 6. Bf4 {[%emt 0:01:58]} g6 {[%emt 0:02:58]} 7. e3 {[%emt 0:02:28]} Bg7 {[%emt 0:01:03]} 8. Be2 {[%emt 0:01:51]} O-O {[%emt 0:00:57]} 9. h3 {[%emt 0:02:09]} Ne4 {[%emt 0:07:54]} 10. Nxe4 {[%emt 0:09:58]} dxe4 {[%emt 0:00:07]} 11. Ne5 {[%emt 0:02:44]} Nxe5 {[%emt 0:02:42]} 12. Bxe5 {[%emt 0:04:01]} Bxe5 {[%emt 0:04:50]} 13. dxe5 {[%emt 0:00:08]} Qg5 {[%emt 0:08:08]} 14. Qd4 {[%emt 0:02:58]} Qxg2 {[%emt 0:03:08]} 15. O-O-O {[%emt 0:06:22]} Qxf2 {[%emt 0:00:45]} 16. Bc4 {[%emt 0:02:44]} Qh4 {[%emt 0:04:14]} 17. Bb3 {[%emt 0:02:36]} a5 {[%emt 0:05:58]} 18. Bc2 {[%emt 0:24:05]} a4 {[%emt 0:05:38]} 19. Bxe4 {[%emt 0:05:42]} Ra5 {[%emt 0:02:19]} 20. Kb1 {[%emt 0:01:58]} b6 {[%emt 0:03:32]} 21. cxb6 {[%emt 0:00:59]} cxb6 {[%emt 0:00:09]} 22. Rhg1 {[%emt 0:00:33]} Qh5 {[%emt 0:08:36]} 23. Qxb6 {[%emt 0:04:26]} Qxe5 {[%emt 0:00:28]} 24. Bc6 {[%emt 0:03:55]} Ra6 {[%emt 0:03:19]} 25. Qb5 {[%emt 0:01:03]} Qxe3 {[%emt 0:00:28]} 26. Rge1 {[%emt 0:01:04]} Qxh3 {[%emt 0:01:43]} 27. Be4 {[%emt 0:01:46]} a3 {[%emt 0:02:25]} 28. Qe5 {[%emt 0:01:55]} Qh6 {[%emt 0:01:40]} 29. Rf1 {[%emt 0:07:33]} axb2 {[%emt 0:02:17]} 30. Rf6 {[%emt 0:00:49]} Qe3 {[%emt 0:06:24]} 31. Rf3 {[%emt 0:05:24]} Qe2 {[%emt 0:00:50]} 32. Qd4 {[%emt 0:01:06]} e5 {[%emt 0:01:39]} 0-1